bitfinex/quotes_BTCUSD_20250808
["timestamp","ask_amount","ask_price","bid_price","bid_amount"]
[1754644185017,0.83517258,116740.0,116730.0,0.28494167]
[1754644186444,0.83517258,116740.0,116730.0,0.11360611]
[1754644186661,0.83517258,116740.0,116730.0,0.28494167]
[1754644187792,0.83517258,116740.0,116730.0,0.11360611]
[1754644188008,0.83517258,116740.0,116730.0,0.28494167]
[1754644190043,0.96537258,116740.0,116730.0,0.28494167]
[1754644192092,0.33041088,116740.0,116730.0,0.28494167]
[1754644192296,0.96533258,116740.0,116730.0,0.28494167]
[1754644193886,0.83517258,116740.0,116730.0,0.28494167]
[1754644194285,0.96533258,116740.0,116730.0,0.28494167]
[1754644196728,0.6638517,116740.0,116730.0,0.28494167]
[1754644196936,0.47655085,116740.0,116730.0,0.28494167]
[1754644199332,0.02386,116740.0,116730.0,0.60240252]
[1754644199558,0.85609979,116760.0,116750.0,0.1713062]
[1754644199793,0.98824979,116760.0,116750.0,0.1713062]
[1754644200495,1.30571064,116760.0,116750.0,0.1713062]
[1754644200738,0.81995822,116760.0,116750.0,0.1713062]
[1754644200973,0.82095822,116760.0,116750.0,0.1713062]
[1754644201657,0.82095822,116760.0,116750.0,0.26030963]
[1754644201901,0.82095822,116760.0,116750.0,0.25816831]
[1754644205400,1.13841907,116760.0,116750.0,0.25816831]
[1754644206727,1.3097106,116760.0,116750.0,0.25816831]
[1754644222932,0.50349737,116760.0,116750.0,0.25816831]
[1754644223130,0.82095822,116760.0,116750.0,0.25816831]
[1754644224054,0.82103822,116760.0,116750.0,0.25816831]
[1754644224699,0.82107822,116760.0,116750.0,0.25816831]
[1754644226048,0.00404737,116760.0,116750.0,0.25816831]
[1754644226268,0.47513822,116760.0,116750.0,0.25816831]
[1754644226479,0.48017822,116760.0,116750.0,0.28391031]
[1754644227176,0.16171737,116760.0,116750.0,0.28391031]
[1754644227389,0.15964737,116760.0,116750.0,0.28391031]
[1754644227824,0.15667737,116760.0,116750.0,0.28391031]
[1754644228033,0.15367737,116760.0,116750.0,0.28391031]
[1754644228503,0.15567737,116760.0,116750.0,0.28391031]
[1754644231293,0.15864737,116760.0,116750.0,0.28391031]
[1754644231721,0.15864737,116760.0,116750.0,0.55331031]
[1754644239652,0.15567737,116760.0,116750.0,0.87077116]
[1754644240084,0.15567737,116760.0,116750.0,1.00093116]
[1754644241399,0.00204737,116760.0,116750.0,1.00151116]
[1754644242322,0.00204737,116760.0,116750.0,1.01025727]
[1754644244742,0.00339737,116770.0,116760.0,0.17129153]
[1754644244957,0.13355737,116770.0,116760.0,0.39045478]
[1754644245167,0.13652737,116770.0,116760.0,0.25815364]
[1754644245374,0.13652737,116770.0,116760.0,0.60135549]
[1754644245581,0.13652737,116770.0,116760.0,0.28389464]
[1754644245786,0.00636737,116770.0,116760.0,0.28389464]
[1754644246036,0.00636737,116770.0,116760.0,0.60135549]
[1754644246248,0.00836737,116770.0,116760.0,0.60135549]
[1754644246378,0.00836737,116770.0,116760.0,0.87075549]
[1754644247765,0.00836737,116770.0,116760.0,0.55329464]
[1754644247992,0.00836737,116770.0,116760.0,1.00087549]
[1754644249314,0.00836737,116770.0,116760.0,0.68341464]
[1754644249765,0.01043737,116770.0,116760.0,0.68341464]
[1754644254747,0.01043737,116770.0,116760.0,1.00087549]
[1754644254919,0.002,116770.0,116760.0,1.33886634]
[1754644256209,0.002,116770.0,116760.0,1.34086634]
[1754644256629,0.47363085,116790.0,116780.0,0.1712622]
[1754644256842,0.47583821,116790.0,116780.0,0.25812431]
[1754644257054,0.02825736,116790.0,116780.0,0.70570516]
[1754644257259,4.736e-05,116790.0,116780.0,0.75197016]
[1754644257489,4.736e-05,116790.0,116780.0,1.06943101]
[1754644257920,4.736e-05,116790.0,116780.0,0.75197016]
[1754644258131,0.00204736,116790.0,116780.0,0.75197016]
[1754644263412,4.736e-05,116790.0,116780.0,0.75197016]
[1754644264388,4.736e-05,116790.0,116780.0,0.43450931]
[1754644264593,4.736e-05,116790.0,116780.0,0.75197016]
[1754644265233,4.736e-05,116790.0,116780.0,0.75297016]
[1754644267218,4.736e-05,116790.0,116780.0,1.02237016]
[1754644274380,4.736e-05,116790.0,116780.0,1.33983101]
[1754644276987,4.736e-05,116790.0,116780.0,1.67983101]
[1754644277401,4.736e-05,116790.0,116780.0,2.03974088]
[1754644277613,4.736e-05,116790.0,116780.0,1.72228003]
[1754644277832,4.736e-05,116790.0,116780.0,1.69728003]
[1754644278286,4.736e-05,116790.0,116780.0,1.72128003]
[1754644278751,4.736e-05,116790.0,116780.0,1.69628003]
[1754644278985,4.736e-05,116790.0,116780.0,1.72428003]
[1754644279417,4.736e-05,116790.0,116780.0,1.69928003]
[1754644279826,4.736e-05,116790.0,116780.0,1.72428003]
[1754644280259,4.736e-05,116790.0,116780.0,1.70128003]
[1754644280489,4.736e-05,116790.0,116780.0,1.72628003]
[1754644281165,4.736e-05,116790.0,116780.0,1.70128003]
[1754644281326,4.736e-05,116790.0,116780.0,1.72628003]
[1754644281573,4.736e-05,116790.0,116780.0,1.70128003]
[1754644282541,4.736e-05,116790.0,116780.0,1.06635833]
[1754644282746,4.736e-05,116790.0,116780.0,1.70128003]
[1754644284901,4.736e-05,116790.0,116780.0,1.79157003]
[1754644288865,4.736e-05,116790.0,116780.0,0.89825931]
[1754644288866,0.34691821,116790.0,116780.0,0.89825931]
[1754644289075,0.34691821,116790.0,116780.0,0.55825931]
[1754644289933,0.41691821,116790.0,116780.0,0.55625931]
[1754644290238,0.41691821,116790.0,116780.0,0.55325931]
[1754644291346,0.41691821,116790.0,116780.0,0.68329931]
[1754644296574,0.0984504,116790.0,116780.0,1.00076016]
[1754644296787,0.07,116790.0,116780.0,1.34645101]
[1754644297621,0.31766085,116810.0,116800.0,0.17123287]
[1754644297780,0.00239735,116810.0,116800.0,0.38813498]
[1754644298001,0.3198582,116810.0,116800.0,0.38813498]
[1754644298384,0.3198582,116810.0,116800.0,0.41386598]
[1754644298734,0.02965735,116810.0,116800.0,0.41386598]
[1754644299625,0.6236493,116810.0,116800.0,0.28382598]
[1754644299827,0.6236493,116810.0,116800.0,0.55322598]
[1754644300623,0.45243109,116810.0,116800.0,0.55322598]
[1754644301876,0.6236493,116810.0,116800.0,0.55322598]
[1754644302278,0.45243109,116810.0,116800.0,0.55322598]
[1754644303357,0.7536893,116810.0,116800.0,0.55322598]
[1754644303563,0.58247109,116810.0,116800.0,0.55322598]
[1754644303773,0.7536893,116810.0,116800.0,0.55322598]
[1754644304830,0.58247109,116810.0,116800.0,0.55322598]
[1754644305513,0.65247109,116810.0,116800.0,0.55322598]
[1754644305721,0.65247109,116810.0,116800.0,0.28382598]
[1754644305901,0.8236893,116810.0,116800.0,0.28382598]
[1754644306739,0.65247109,116810.0,116800.0,0.28382598]
[1754644308039,0.22676735,116810.0,116800.0,0.43947598]
[1754644308248,0.00024735,116810.0,116800.0,0.44254598]
[1754644310306,0.00024735,116810.0,116800.0,0.43947598]
[1754644310523,0.02672735,116810.0,116800.0,0.43947598]
[1754644311682,0.02672735,116810.0,116800.0,0.70887598]
[1754644312921,0.00024735,116810.0,116800.0,0.71181598]
[1754644313806,0.00024735,116810.0,116800.0,1.13458972]
[1754644314026,0.00024735,116810.0,116800.0,1.14337031]
[1754644314474,0.00024735,116810.0,116800.0,1.1692556]
[1754644318390,0.00024735,116810.0,116800.0,1.0392156]
[1754644318599,0.00024735,116810.0,116800.0,0.71213127]
[1754644318844,0.02569735,116810.0,116800.0,0.71213127]
[1754644318994,0.02887735,116810.0,116800.0,0.71213127]
[1754644319616,0.02887735,116810.0,116800.0,0.73469127]
[1754644320397,0.02887735,116810.0,116800.0,0.73569127]
[1754644321572,0.02569735,116810.0,116800.0,0.73569127]
[1754644321990,0.02361735,116810.0,116800.0,0.73569127]
[1754644322624,0.00024735,116810.0,116800.0,0.73569127]
[1754644327280,0.00024735,116810.0,116800.0,0.73863127]
[1754644335211,0.02887735,116810.0,116800.0,0.71317127]
[1754644335422,0.02887735,116810.0,116800.0,0.71119127]
[1754644335807,0.02887735,116810.0,116800.0,0.71320127]
[1754644336168,0.02887735,116810.0,116800.0,0.73576127]
[1754644337968,0.02887735,116810.0,116800.0,0.71320127]
[1754644341581,0.02887735,116810.0,116800.0,0.73717127]
[1754644341789,0.02569735,116810.0,116800.0,0.73717127]
[1754644342840,0.02873735,116810.0,116800.0,0.71320127]
[1754644343644,0.02873735,116810.0,116800.0,0.73717127]
[1754644343852,0.02569735,116810.0,116800.0,0.73717127]
[1754644344742,0.34275368,116810.0,116800.0,0.73717127]
[1754644346227,0.02569735,116810.0,116800.0,0.73717127]
[1754644346479,0.34275368,116810.0,116800.0,0.73717127]
[1754644346664,0.34579368,116810.0,116800.0,0.71320127]
[1754644347096,0.34579368,116810.0,116800.0,0.73717127]
[1754644349429,0.34275368,116810.0,116800.0,0.73717127]
[1754644351761,0.34275368,116810.0,116800.0,0.71320127]
[1754644351964,0.34579368,116810.0,116800.0,0.71320127]
[1754644353737,0.34579368,116810.0,116800.0,0.58312127]
[1754644353941,0.51701189,116810.0,116800.0,0.71111127]
[1754644354505,0.51701189,116810.0,116800.0,0.51399311]
[1754644355149,0.51701189,116810.0,116800.0,0.68522598]
[1754644356364,0.52572969,116810.0,116800.0,0.68522598]
[1754644360037,0.20867336,116810.0,116800.0,0.68522598]
[1754644360236,0.58701189,116810.0,116800.0,0.68522598]
[1754644361825,0.53846788,116810.0,116800.0,0.68522598]
[1754644362772,0.53846788,116810.0,116800.0,0.70919598]
[1754644363708,0.56195788,116810.0,116800.0,0.70919598]
[1754644364490,0.56195788,116810.0,116800.0,0.71226598]
[1754644364711,0.57046031,116810.0,116800.0,0.71226598]
[1754644364927,0.57046031,116810.0,116800.0,0.71438598]
[1754644370291,0.54493031,116810.0,116800.0,0.71438598]
[1754644370908,0.53642788,116810.0,116800.0,0.71438598]
[1754644372819,0.54483755,116810.0,116800.0,0.71438598]
[1754644375517,0.38705633,116810.0,116800.0,0.71438598]
[1754644375730,0.07,116810.0,116800.0,0.71438598]
[1754644375908,0.38705633,116810.0,116800.0,0.71438598]
[1754644380084,0.55827454,116810.0,116800.0,0.71438598]
[1754644380704,0.38705633,116810.0,116800.0,0.71438598]
[1754644384917,0.55827454,116810.0,116800.0,0.71438598]
[1754644385367,0.38705633,116810.0,116800.0,0.71438598]
[1754644387258,0.55827454,116810.0,116800.0,0.71438598]
[1754644387463,0.38705633,116810.0,116800.0,0.71438598]
[1754644388145,0.55827454,116810.0,116800.0,0.71438598]
[1754644393074,0.38705633,116810.0,116800.0,0.71438598]
[1754644393958,0.07,116810.0,116800.0,0.71438598]
[1754644394184,0.38705633,116810.0,116800.0,0.71438598]
[1754644396053,0.07,116810.0,116800.0,0.71438598]
[1754644396297,0.38705633,116810.0,116800.0,0.71438598]
[1754644401260,0.07,116810.0,116800.0,0.71438598]
[1754644401493,0.38705633,116810.0,116800.0,0.71438598]
[1754644405684,0.07,116810.0,116800.0,0.71438598]
[1754644405937,0.38705633,116810.0,116800.0,0.71438598]
[1754644410168,0.07,116810.0,116800.0,0.71438598]
[1754644410376,0.38705633,116810.0,116800.0,0.71438598]
[1754644421061,0.07,116810.0,116800.0,0.71438598]
[1754644421324,0.38705633,116810.0,116800.0,0.71438598]
[1754644428035,0.56025454,116810.0,116800.0,0.71438598]
[1754644428243,0.58486454,116810.0,116800.0,0.71438598]
[1754644428471,0.58486454,116810.0,116800.0,0.44498598]
[1754644429102,0.41364633,116810.0,116800.0,0.44498598]
[1754644429313,0.58486454,116810.0,116800.0,0.44498598]
[1754644430191,0.56025454,116810.0,116800.0,0.44498598]
[1754644430416,0.58486454,116810.0,116800.0,0.11459311]
[1754644430621,0.90472087,116810.0,116800.0,0.11459311]
[1754644431008,0.90472087,116810.0,116800.0,0.027731]
[1754644431210,0.90472087,116810.0,116800.0,0.002]
[1754644431402,0.90472087,116810.0,116800.0,0.001]
[1754644431637,0.17123287,116800.0,116790.0,0.025735]
[1754644431874,0.93534553,116800.0,116790.0,0.11259711]
[1754644432067,0.96398553,116800.0,116790.0,0.11259711]
[1754644433071,0.96398553,116800.0,116790.0,0.28384464]
[1754644433538,0.96398553,116800.0,116790.0,0.28484464]
[1754644434402,0.96398553,116800.0,116790.0,0.28584464]
[1754644435909,0.96398553,116800.0,116790.0,0.11459711]
[1754644437208,0.96398553,116800.0,116790.0,0.28584464]
[1754644437627,0.96398553,116800.0,116790.0,0.11459711]
[1754644438064,0.96398553,116800.0,116790.0,0.28584464]
[1754644438521,0.96135553,116800.0,116790.0,0.28584464]
[1754644442991,0.96135553,116800.0,116790.0,0.11459711]
[1754644444519,0.96135553,116800.0,116790.0,0.28584464]
[1754644446870,0.96135553,116800.0,116790.0,0.11459711]
[1754644448729,0.96135553,116800.0,116790.0,0.28584464]
[1754644449273,0.96135553,116800.0,116790.0,0.11459711]
[1754644450908,0.96135553,116800.0,116790.0,0.28584464]
[1754644451105,0.96135553,116800.0,116790.0,0.11459711]
[1754644451982,0.96398553,116800.0,116790.0,0.11459711]
[1754644452580,0.96398553,116800.0,116790.0,0.08786211]
[1754644453437,0.96135553,116800.0,116790.0,0.08786211]
[1754644454223,0.96135553,116800.0,116790.0,0.08686211]
[1754644455217,0.32724287,116800.0,116790.0,0.08686211]
[1754644455439,0.96135553,116800.0,116790.0,0.08686211]
[1754644459214,0.96399553,116800.0,116790.0,0.08686211]
[1754644459623,0.96399553,116800.0,116780.0,0.025738]
[1754644459624,0.17124753,116790.0,116780.0,0.025738]
[1754644459844,0.64431386,116790.0,116780.0,0.025738]
[1754644460071,0.96401019,116790.0,116780.0,0.025738]
[1754644460287,0.1712622,116780.0,116770.0,0.29686]
[1754644460486,0.93752486,116780.0,116770.0,0.41146211]
[1754644460703,0.96138486,116780.0,116770.0,0.41146211]
[1754644460972,0.3272722,116780.0,116770.0,0.41146211]
[1754644461154,0.93537486,116780.0,116770.0,0.58273897]
[1754644462430,1.00537486,116780.0,116770.0,0.31333897]
[1754644462633,1.00537486,116780.0,116770.0,0.31433897]
[1754644463184,1.00537486,116780.0,116770.0,0.31533897]
[1754644464919,1.00537486,116780.0,116770.0,0.14406211]
[1754644465598,1.02853486,116780.0,116770.0,0.14406211]
[1754644465831,1.03063486,116780.0,116770.0,0.11460211]
[1754644466976,1.03063486,116780.0,116770.0,0.31138897]
[1754644467204,1.00537486,116780.0,116770.0,0.31455897]
[1754644470118,0.3712622,116780.0,116770.0,0.31455897]
[1754644470341,1.00537486,116780.0,116770.0,0.31455897]
[1754644471198,0.3712622,116780.0,116770.0,0.31455897]
[1754644471407,1.00537486,116780.0,116770.0,0.31455897]
[1754644471583,0.3712622,116780.0,116770.0,0.31455897]
[1754644472006,1.00537486,116780.0,116770.0,0.31455897]
[1754644477909,1.00747486,116780.0,116770.0,0.31455897]
[1754644478124,1.00747486,116780.0,116770.0,0.14328211]
[1754644478537,1.00747486,116780.0,116770.0,0.31455897]
[1754644479480,1.00747486,116780.0,116770.0,0.14328211]
[1754644479885,1.03063486,116780.0,116770.0,0.14328211]
[1754644480101,1.03063486,116780.0,116770.0,0.11460211]
[1754644481181,1.03063486,116780.0,116770.0,0.002]
[1754644481814,1.03063486,116780.0,116770.0,0.001]
[1754644482242,0.17127686,116770.0,116760.0,0.052272]
[1754644482447,0.62047319,116770.0,116760.0,0.14128411]
[1754644483520,0.62047319,116770.0,116760.0,0.14233146]
[1754644483736,0.62047319,116770.0,116760.0,0.31362299]
[1754644483881,0.62886344,116770.0,116760.0,0.31362299]
[1754644484084,0.31180711,116770.0,116760.0,0.31362299]
[1754644484351,0.58147853,116780.0,116760.0,0.31362299]
[1754644484619,0.31705633,116770.0,116760.0,0.28709299]
[1754644484824,0.48833319,116770.0,116760.0,0.28709299]
[1754644485241,0.48833319,116770.0,116760.0,0.31462299]
[1754644485460,0.48833319,116770.0,116760.0,0.31362299]
[1754644485872,0.17127686,116770.0,116760.0,0.31362299]
[1754644486102,0.48833319,116770.0,116760.0,0.31362299]
[1754644486305,0.48833319,116770.0,116760.0,0.31462299]
[1754644486512,0.61837319,116770.0,116760.0,0.31462299]
[1754644489228,0.44709633,116770.0,116760.0,0.31462299]
[1754644489432,0.13004,116770.0,116760.0,0.31462299]
[1754644489658,0.44709633,116770.0,116760.0,0.31462299]
[1754644489859,0.13004,116770.0,116760.0,0.31462299]
[1754644490106,0.44709633,116770.0,116760.0,0.31462299]
[1754644490694,0.61837319,116770.0,116760.0,0.31462299]
[1754644491831,0.61837319,116770.0,116760.0,0.44466299]
[1754644492128,0.62037319,116770.0,116760.0,0.44466299]
[1754644493649,0.62037319,116770.0,116760.0,0.31462299]
[1754644495221,0.64528319,116770.0,116760.0,0.14333146]
[1754644495645,0.64528319,116770.0,116760.0,0.11465146]
[1754644496066,0.96513952,116770.0,116760.0,0.11465146]
[1754644496862,0.64808319,116770.0,116760.0,0.11465146]
[1754644497071,0.64808319,116770.0,116760.0,0.11365146]
[1754644497431,0.64528319,116770.0,116760.0,0.11365146]
[1754644498068,0.64528319,116770.0,116760.0,0.11265146]
[1754644498280,0.32822686,116770.0,116760.0,0.11265146]
[1754644498496,0.64528319,116770.0,116760.0,0.11265146]
[1754644501563,0.64808319,116770.0,116760.0,4.735e-05]
[1754644502052,0.33102686,116770.0,116760.0,4.735e-05]
[1754644502296,0.64528319,116770.0,116760.0,4.735e-05]
[1754644503084,0.32822686,116770.0,116760.0,4.735e-05]
[1754644503368,0.64528319,116770.0,116760.0,4.735e-05]
[1754644507035,0.32822686,116770.0,116760.0,4.735e-05]
[1754644507302,0.64528319,116770.0,116760.0,4.735e-05]
[1754644513406,0.64528319,116770.0,116760.0,0.02579135]
[1754644517652,0.32822686,116770.0,116760.0,0.02579135]
[1754644517880,0.64528319,116770.0,116760.0,0.02579135]
[1754644523871,0.62041319,116770.0,116760.0,0.05567135]
[1754644529206,0.30335686,116770.0,116760.0,0.05567135]
[1754644529440,0.62041319,116770.0,116760.0,0.05567135]
[1754644529629,0.24988441,116780.0,116760.0,0.63088132]
[1754644529867,0.20878221,116780.0,116770.0,0.5751953]
[1754644530079,0.20878221,116780.0,116770.0,0.6050753]
[1754644530289,0.38004441,116780.0,116770.0,0.28801897]
[1754644530499,0.20878221,116780.0,116770.0,0.28801897]
[1754644530914,0.69710074,116780.0,116770.0,0.28801897]
[1754644531368,0.69710074,116780.0,116770.0,0.31375997]
[1754644531930,0.52783854,116780.0,116770.0,0.31375997]
[1754644532585,0.69910074,116780.0,116770.0,0.31375997]
[1754644534132,0.38204441,116780.0,116770.0,0.14248311]
[1754644534347,1.01615707,116780.0,116770.0,0.14248311]
[1754644534958,1.01615707,116780.0,116770.0,0.31375997]
[1754644535576,1.01615707,116780.0,116770.0,0.14248311]
[1754644535995,1.01615707,116780.0,116770.0,0.31375997]
[1754644536222,0.38204441,116780.0,116770.0,0.31375997]
[1754644536440,1.01615707,116780.0,116770.0,0.31375997]
[1754644537094,0.69910074,116780.0,116770.0,0.31375997]
[1754644537988,0.56894074,116780.0,116770.0,0.31375997]
[1754644538199,1.01631707,116780.0,116770.0,0.14248311]
[1754644538513,0.88599707,116780.0,116770.0,0.14248311]
[1754644538704,1.01631707,116780.0,116770.0,0.14248311]
[1754644539776,1.01631707,116780.0,116770.0,0.31375997]
[1754644544357,0.38220441,116780.0,116770.0,0.31375997]
[1754644544566,1.01631707,116780.0,116770.0,0.31375997]
[1754644547237,1.01631707,116780.0,116770.0,0.14248311]
[1754644551540,1.01631707,116780.0,116770.0,0.14036311]
[1754644553295,1.01631707,116780.0,116770.0,0.053501]
[1754644553508,1.3333734,116780.0,116770.0,0.053501]
[1754644553720,1.01631707,116780.0,116770.0,0.053501]
[1754644553922,1.01631707,116780.0,116770.0,0.025741]
[1754644557205,0.17127686,116770.0,116760.0,0.17133838]
[1754644557338,0.61865319,116770.0,116760.0,0.11265246]
[1754644558557,0.93570952,116770.0,116760.0,0.02579035]
[1754644558784,1.27570952,116770.0,116760.0,4.735e-05]
[1754644560486,1.27770952,116770.0,116760.0,4.735e-05]
[1754644560701,1.06685383,116770.0,116760.0,4.735e-05]
[1754644565430,0.64359686,116770.0,116760.0,4.735e-05]
[1754644565643,0.51327686,116770.0,116760.0,4.735e-05]
[1754644565833,1.06685383,116770.0,116760.0,4.735e-05]
[1754644567041,0.64359686,116770.0,116760.0,4.735e-05]
[1754644567202,1.06685383,116770.0,116760.0,4.735e-05]
[1754644569370,0.64359686,116770.0,116760.0,4.735e-05]
[1754644569590,1.06685383,116770.0,116760.0,4.735e-05]
[1754644570318,1.09304383,116770.0,116760.0,4.735e-05]
[1754644573821,1.09304383,116770.0,116760.0,0.19965888]
[1754644573822,1.06689383,116770.0,116760.0,0.19965888]
[1754644574033,1.06689383,116770.0,116760.0,0.02836735]
[1754644574254,1.06689383,116770.0,116760.0,0.19965888]
[1754644578850,0.002,116770.0,116760.0,0.28652099]
[1754644579115,0.13236,116770.0,116760.0,0.28652099]
[1754644579317,0.002,116770.0,116760.0,0.31226399]
[1754644579543,0.13236,116770.0,116760.0,0.31226399]
[1754644583032,0.002,116770.0,116760.0,0.31226399]
[1754644583448,0.002,116770.0,116760.0,0.73552096]
[1754644583991,0.002,116770.0,116760.0,0.31226399]
[1754644584803,0.002,116770.0,116760.0,0.44262399]
[1754644586705,0.002,116770.0,116760.0,0.71202399]
[1754644589133,0.002,116770.0,116760.0,0.72070558]
[1754644591431,0.002,116770.0,116760.0,0.71202399]
[1754644600717,0.002,116770.0,116760.0,1.0292866]
[1754644602121,0.002,116770.0,116760.0,0.71202399]
[1754644602426,0.002,116770.0,116760.0,1.0292866]
[1754644603077,0.002,116770.0,116760.0,0.71202399]
[1754644603466,0.002,116770.0,116760.0,1.0292866]
[1754644605121,0.002,116770.0,116760.0,0.71202399]
[1754644605320,0.002,116770.0,116760.0,1.0292866]
[1754644609230,0.002,116770.0,116760.0,0.71202399]
[1754644609430,0.31926261,116770.0,116760.0,0.71202399]
[1754644615346,0.31926261,116770.0,116760.0,0.58166399]
[1754644615555,0.51623947,116770.0,116760.0,0.55529399]
[1754644615769,0.34496261,116770.0,116760.0,0.55529399]
[1754644616254,0.34496261,116770.0,116760.0,0.55334399]
[1754644616819,0.34496261,116770.0,116760.0,0.57608399]
[1754644618106,0.34496261,116770.0,116760.0,0.57930399]
[1754644618318,0.32124261,116770.0,116760.0,0.57930399]
[1754644618530,0.32124261,116770.0,116760.0,0.58132399]
[1754644619393,0.32124261,116770.0,116760.0,0.71156399]
[1754644621405,0.32124261,116770.0,116760.0,0.58132399]
[1754644622481,0.31926261,116770.0,116760.0,0.58132399]
[1754644623125,0.32124261,116770.0,116760.0,0.58132399]
[1754644623345,0.34496261,116770.0,116760.0,0.55334399]
[1754644623835,0.34496261,116770.0,116760.0,0.58132399]
[1754644624068,0.32124261,116770.0,116760.0,0.58132399]
[1754644624962,0.31926261,116770.0,116760.0,0.58132399]
[1754644625377,0.002,116770.0,116760.0,0.71152399]
[1754644625588,0.31926261,116770.0,116760.0,0.71152399]
[1754644626462,0.34496261,116770.0,116760.0,0.68354399]
[1754644627100,0.34496261,116770.0,116760.0,0.55334399]
[1754644627101,0.51623947,116770.0,116760.0,0.55334399]
[1754644627315,0.51903947,116770.0,116760.0,0.55334399]
[1754644627967,0.51903947,116770.0,116760.0,0.28394399]
[1754644629038,0.83630208,116770.0,116760.0,0.11265246]
[1754644629250,0.51903947,116770.0,116760.0,0.11265246]
[1754644632950,0.51903947,116770.0,116760.0,0.28394399]
[1754644633957,0.51623947,116770.0,116760.0,0.28394399]
[1754644635937,0.17327686,116770.0,116760.0,0.31192399]
[1754644636159,0.002,116770.0,116760.0,0.31192399]
[1754644636296,0.31926261,116770.0,116760.0,0.31192399]
[1754644637122,0.002,116770.0,116760.0,0.31192399]
[1754644637328,0.002,116770.0,116760.0,0.6291866]
[1754644637485,0.002,116770.0,116760.0,0.31192399]
[1754644639961,0.002,116770.0,116760.0,0.58132399]
[1754644640365,0.31926261,116770.0,116760.0,0.58132399]
[1754644640992,0.34510261,116770.0,116760.0,0.58132399]
[1754644641395,0.32138261,116770.0,116760.0,0.58132399]
[1754644641603,0.31926261,116770.0,116760.0,0.58132399]
[1754644641810,0.002,116770.0,116760.0,0.58132399]
[1754644642218,0.31926261,116770.0,116760.0,0.58132399]
[1754644642824,0.002,116770.0,116760.0,0.58132399]
[1754644648061,0.59633871,116770.0,116760.0,0.58132399]
[1754644648472,0.42506185,116770.0,116760.0,0.58132399]
[1754644651709,0.002,116770.0,116760.0,0.58132399]
[1754644658073,0.002,116770.0,116760.0,0.71144399]
[1754644661330,0.002,116770.0,116760.0,1.13450584]
[1754644662581,0.002,116770.0,116760.0,0.71144399]
[1754644662786,0.002,116770.0,116760.0,1.02866196]
[1754644664172,0.38721797,116780.0,116770.0,0.17127686]
[1754644664401,0.07,116780.0,116770.0,0.39030897]
[1754644664625,0.07,116780.0,116770.0,0.41759897]
[1754644665064,0.07,116780.0,116770.0,0.44333797]
[1754644665340,0.38921797,116780.0,116770.0,0.44333797]
[1754644666924,0.072,116780.0,116770.0,0.31321797]
[1754644667157,0.072,116780.0,116770.0,0.32180086]
[1754644669581,0.072,116780.0,116770.0,0.59120086]
[1754644672668,0.072,116780.0,116770.0,0.72132086]
[1754644673532,0.072,116780.0,116770.0,1.03853883]
[1754644674800,0.07,116780.0,116770.0,1.03853883]
[1754644676586,0.07,116780.0,116770.0,0.72132086]
[1754644676725,0.07,116780.0,116770.0,1.03853883]
[1754644680385,0.07,116780.0,116770.0,0.72132086]
[1754644680608,0.07,116780.0,116770.0,1.03853883]
[1754644681682,0.07,116780.0,116770.0,1.05598785]
[1754644683248,0.07,116780.0,116770.0,1.05698785]
[1754644683453,0.07,116780.0,116770.0,1.37420582]
[1754644684104,0.07,116780.0,116770.0,0.73976988]
[1754644684324,0.07,116780.0,116770.0,1.37520582]
[1754644684925,0.07,116780.0,116770.0,1.05798785]
[1754644686527,0.07,116780.0,116770.0,0.74076988]
[1754644686950,0.07,116780.0,116770.0,1.05798785]
[1754644690905,0.07,116780.0,116770.0,0.74076988]
[1754644691116,0.07,116780.0,116770.0,1.05798785]
[1754644694986,0.07,116780.0,116770.0,0.74076988]
[1754644695433,0.07,116780.0,116770.0,1.05798785]
[1754644696790,0.07,116780.0,116770.0,1.37520582]
[1754644699444,0.07,116780.0,116770.0,1.05798785]
[1754644701818,0.07,116780.0,116770.0,0.74076988]
[1754644702090,0.07,116780.0,116770.0,1.37520582]
[1754644707322,0.07,116780.0,116770.0,1.71520582]
[1754644708144,0.07,116780.0,116770.0,1.86925674]
[1754644710162,0.09613,116780.0,116770.0,1.52277877]
[1754644710567,0.09613,116780.0,116770.0,1.54551877]
[1754644711084,0.09613,116780.0,116770.0,1.54749877]
[1754644711293,0.07205,116780.0,116770.0,1.55071877]
[1754644713954,0.09613,116780.0,116770.0,1.39257877]
[1754644714167,0.09886,116780.0,116770.0,1.50540975]
[1754644714545,0.09886,116780.0,116770.0,1.35135883]
[1754644714828,0.09613,116780.0,116770.0,1.35135883]
[1754644718269,0.09613,116780.0,116770.0,1.03414086]
[1754644718465,0.09613,116780.0,116770.0,1.35135883]
[1754644720341,0.09613,116780.0,116770.0,1.37409883]
[1754644720990,0.09613,116780.0,116770.0,1.37731883]
[1754644721209,0.09613,116780.0,116770.0,1.37929883]
[1754644721841,0.07205,116780.0,116770.0,1.37929883]
[1754644724622,0.07,116780.0,116770.0,1.37929883]
[1754644732535,0.07,116780.0,116770.0,1.6965168]
[1754644734619,0.07,116780.0,116770.0,1.37929883]
[1754644742185,0.07,116780.0,116770.0,1.06208086]
[1754644742313,0.07,116780.0,116770.0,1.37929883]
[1754644744529,0.07,116780.0,116770.0,1.06208086]
[1754644744709,0.07,116780.0,116770.0,1.37929883]
[1754644746287,0.09448,116780.0,116770.0,1.35127883]
[1754644746805,0.07198,116780.0,116770.0,1.38076883]
[1754644747020,0.07,116780.0,116770.0,1.38076883]
[1754644755705,0.09448,116780.0,116770.0,0.55527797]
[1754644755909,0.09727,116780.0,116770.0,0.68547797]
[1754644756080,0.41448797,116780.0,116770.0,0.68547797]
[1754644756520,0.90296814,116780.0,116770.0,0.55527797]
[1754644756727,0.90296814,116780.0,116770.0,0.11460111]
[1754644756929,1.03320814,116780.0,116770.0,0.002]
[1754644758272,1.03320814,116780.0,116770.0,0.001]
[1754644758478,0.17127686,116770.0,116760.0,0.15603035]
[1754644758695,0.51576483,116770.0,116760.0,0.24289246]
[1754644759640,0.51576483,116770.0,116760.0,0.24389246]
[1754644759873,0.52419675,116770.0,116760.0,0.41518399]
[1754644760880,0.51576483,116770.0,116760.0,0.41518399]
[1754644762278,0.52440203,116770.0,116760.0,0.41518399]
[1754644762511,0.20718406,116770.0,116760.0,0.41518399]
[1754644762752,0.52440203,116770.0,116760.0,0.41518399]
[1754644767261,0.52174203,116770.0,116760.0,0.41518399]
[1754644768609,0.51310483,116770.0,116760.0,0.41518399]
[1754644768821,0.34182797,116770.0,116760.0,0.41518399]
[1754644769033,0.51310483,116770.0,116760.0,0.41518399]
[1754644776098,0.34182797,116770.0,116760.0,0.41518399]
[1754644776299,0.51310483,116770.0,116760.0,0.44290399]
[1754644776731,0.34182797,116770.0,116760.0,0.44501399]
[1754644776937,0.51310483,116770.0,116760.0,0.44501399]
[1754644779870,0.34182797,116770.0,116760.0,0.44501399]
[1754644780359,0.31932797,116770.0,116760.0,0.44501399]
[1754644781200,0.49060483,116770.0,116760.0,0.44501399]